[Event "Late-Titled-Tuesday-Blitz-May-28-2024"]
[Site "Chess.com"]
[Date "2024.05.28"]
[Round "2"]
[White "StoreySniper"]
[Black "yujiarun18"]
[Result "1-0"]
[WhiteElo "2518"]
[BlackElo "2264"]
[TimeControl "180+1"]
[EndTime "14:17:45 PDT"]
[Termination "StoreySniper won by resignation"]

1. c4 {[%clk 0:03:00.9]} 1... e6 {[%clk 0:02:59.8]} 2. g3 {[%clk 0:03:00.5]}
2... d5 {[%clk 0:03:00.3]} 3. Bg2 {[%clk 0:03:00.6]} 3... Nf6 {[%clk 0:03:00.8]}
4. Nf3 {[%clk 0:03:00.4]} 4... Be7 {[%clk 0:03:01.3]} 5. d4 {[%clk 0:02:59.9]}
5... O-O {[%clk 0:03:01.5]} 6. Nc3 {[%clk 0:02:56.2]} 6... c6 {[%clk 0:03:02.2]}
7. O-O {[%clk 0:02:52.9]} 7... b6 {[%clk 0:03:02.8]} 8. Nd2 {[%clk 0:02:51.2]}
8... Bb7 {[%clk 0:03:03.4]} 9. e4 {[%clk 0:02:50.8]} 9... Na6 {[%clk 0:03:00.3]}
10. cxd5 {[%clk 0:02:48.5]} 10... exd5 {[%clk 0:02:55.6]} 11. e5 {[%clk
0:02:48.8]} 11... Ne8 {[%clk 0:02:53.1]} 12. f4 {[%clk 0:02:45.2]} 12... c5
{[%clk 0:02:50.8]} 13. f5 {[%clk 0:02:43.7]} 13... cxd4 {[%clk 0:02:47.5]} 14.
Ne2 {[%clk 0:02:39.6]} 14... Bc5 {[%clk 0:02:41.3]} 15. Kh1 {[%clk 0:02:32.5]}
15... Nb4 {[%clk 0:02:27.7]} 16. Nf3 {[%clk 0:02:07.6]} 16... d3 {[%clk
0:02:25.4]} 17. Nf4 {[%clk 0:02:06.7]} 17... Ba6 {[%clk 0:02:20.7]} 18. f6
{[%clk 0:01:58.2]} 18... Nc2 {[%clk 0:02:18.8]} 19. Rb1 {[%clk 0:01:33.5]} 19...
Ne3 {[%clk 0:02:07.4]} 20. Bxe3 {[%clk 0:01:32.1]} 20... Bxe3 {[%clk 0:02:07.5]}
21. Nxd3 {[%clk 0:01:21.7]} 21... gxf6 {[%clk 0:02:04.1]} 22. Re1 {[%clk
0:01:01.9]} 22... Bh6 {[%clk 0:01:55.6]} 23. Nf4 {[%clk 0:01:00.1]} 23... fxe5
{[%clk 0:01:45.9]} 24. Nxe5 {[%clk 0:00:50.9]} 24... Bxf4 {[%clk 0:01:42]} 25.
gxf4 {[%clk 0:00:48.2]} 25... Nf6 {[%clk 0:01:41.5]} 26. Qd4 {[%clk 0:00:40]}
26... Rc8 {[%clk 0:01:25.1]} 27. Rg1 {[%clk 0:00:36.8]} 27... Kh8 {[%clk
0:01:22.8]} 28. Nd7 {[%clk 0:00:27]} 28... Rc6 {[%clk 0:01:20.2]} 29. Nxf8
{[%clk 0:00:19.5]} 29... Qxf8 {[%clk 0:01:17.8]} 30. Bf3 {[%clk 0:00:17.4]}
30... Qh6 {[%clk 0:01:11.8]} 31. Rg5 {[%clk 0:00:15.2]} 31... Rc4 {[%clk
0:01:05.4]} 32. Qe5 {[%clk 0:00:14.5]} 32... Bb7 {[%clk 0:00:54.1]} 33. Rbg1
{[%clk 0:00:13.6]} 33... Rc8 {[%clk 0:00:54.3]} 34. Rf5 {[%clk 0:00:13.6]} 34...
Rc2 {[%clk 0:00:45.6]} 35. Qxf6+ {[%clk 0:00:10.9]} 35... Qxf6 {[%clk
0:00:43.6]} 36. Rxf6 {[%clk 0:00:11.8]} 36... Rxb2 {[%clk 0:00:41.7]} 37. Rxf7
{[%clk 0:00:11.9]} 1-0

[Event "Late-Titled-Tuesday-Blitz-May-28-2024"]
[Site "Chess.com"]
[Date "2024.05.28"]
[Round "2"]
[White "The_Sherman_Variation"]
[Black "rasmussvane"]
[Result "1-0"]
[WhiteElo "2593"]
[BlackElo "2939"]
[TimeControl "180+1"]
[EndTime "14:17:49 PDT"]
[Termination "The_Sherman_Variation won on time"]

1. e4 {[%clk 0:03:00.9]} 1... c6 {[%clk 0:02:58.5]} 2. d4 {[%clk 0:03:00.3]}
2... d5 {[%clk 0:02:59.4]} 3. Nd2 {[%clk 0:03:00]} 3... dxe4 {[%clk 0:02:58.8]}
4. Nxe4 {[%clk 0:03:00.8]} 4... Nf6 {[%clk 0:02:59.6]} 5. Nxf6+ {[%clk
0:03:00.8]} 5... exf6 {[%clk 0:03:00.5]} 6. c3 {[%clk 0:03:01.4]} 6... Bd6
{[%clk 0:02:57.8]} 7. Bd3 {[%clk 0:03:02.3]} 7... O-O {[%clk 0:02:58.2]} 8. Ne2
{[%clk 0:03:03.2]} 8... Re8 {[%clk 0:02:58.8]} 9. Qc2 {[%clk 0:03:03.4]} 9... h5
{[%clk 0:02:55.2]} 10. O-O {[%clk 0:03:03.1]} 10... h4 {[%clk 0:02:52.8]} 11.
Nf4 {[%clk 0:03:02.3]} 11... Nd7 {[%clk 0:02:45.6]} 12. Qd1 {[%clk 0:03:01.2]}
12... Nf8 {[%clk 0:02:45.6]} 13. Qh5 {[%clk 0:03:00.2]} 13... Bxf4 {[%clk
0:02:44.8]} 14. Bxf4 {[%clk 0:02:59.5]} 14... h3 {[%clk 0:02:45.3]} 15. g3
{[%clk 0:02:59.2]} 15... Be6 {[%clk 0:02:32.7]} 16. Rfe1 {[%clk 0:02:52.4]}
16... Qd7 {[%clk 0:02:31.5]} 17. f3 {[%clk 0:02:31.8]} 17... Ng6 {[%clk
0:01:59.6]} 18. Bd2 {[%clk 0:02:22]} 18... b6 {[%clk 0:01:47.1]} 19. g4 {[%clk
0:02:18]} 19... c5 {[%clk 0:01:23.1]} 20. Qxh3 {[%clk 0:02:08.3]} 20... cxd4
{[%clk 0:01:18.7]} 21. c4 {[%clk 0:02:06.5]} 21... Qc7 {[%clk 0:00:51.7]} 22. b3
{[%clk 0:02:03.5]} 22... Rad8 {[%clk 0:00:50.8]} 23. Re2 {[%clk 0:01:56.8]}
23... Nf4 {[%clk 0:00:26]} 24. Qh7+ {[%clk 0:01:55]} 24... Kf8 {[%clk
0:00:24.1]} 25. Bb4+ {[%clk 0:01:55.9]} 25... Rd6 {[%clk 0:00:22.2]} 26. Ree1
{[%clk 0:01:35.5]} 26... a5 {[%clk 0:00:19.6]} 27. Bxd6+ {[%clk 0:01:34.7]}
27... Qxd6 {[%clk 0:00:20.5]} 28. Be4 {[%clk 0:01:33.7]} 28... g6 {[%clk
0:00:19.4]} 29. Rad1 {[%clk 0:01:31]} 29... Ke7 {[%clk 0:00:19.2]} 30. Qh4
{[%clk 0:01:27.6]} 30... d3 {[%clk 0:00:18.4]} 31. Qg3 {[%clk 0:01:22.1]} 31...
Rd8 {[%clk 0:00:17.8]} 32. Rd2 {[%clk 0:01:15.6]} 32... Kf8 {[%clk 0:00:15]} 33.
Kh1 {[%clk 0:01:09.9]} 33... f5 {[%clk 0:00:13.4]} 34. gxf5 {[%clk 0:01:08.9]}
34... gxf5 {[%clk 0:00:14.3]} 35. Bd5 {[%clk 0:01:08.4]} 35... Nxd5 {[%clk
0:00:03.8]} 36. Qxd6+ {[%clk 0:01:07.6]} 36... Rxd6 {[%clk 0:00:04.7]} 37. Rxd3
{[%clk 0:01:04.2]} 37... f4 {[%clk 0:00:02.6]} 38. cxd5 {[%clk 0:00:55.9]} 38...
Bxd5 {[%clk 0:00:02.7]} 39. Re5 {[%clk 0:00:54.9]} 39... Bxf3+ {[%clk
0:00:01.2]} 40. Rxf3 {[%clk 0:00:55.8]} 40... Rd2 {[%clk 0:00:01.1]} 41. Rxf4
{[%clk 0:00:53.5]} 1-0

[Event "Late-Titled-Tuesday-Blitz-May-28-2024"]
[Site "Chess.com"]
[Date "2024.05.28"]
[Round "2"]
[White "DucksParadise"]
[Black "temus_galaktionov"]
[Result "0-1"]
[WhiteElo "2558"]
[BlackElo "2876"]
[TimeControl "180+1"]
[EndTime "14:17:56 PDT"]
[Termination "temus_galaktionov won by resignation"]

1. b3 {[%clk 0:03:00.9]} 1... c6 {[%clk 0:02:58.6]} 2. Bb2 {[%clk 0:02:58.2]}
2... d6 {[%clk 0:02:59.5]} 3. f4 {[%clk 0:02:56.1]} 3... Nd7 {[%clk 0:02:58.5]}
4. Nf3 {[%clk 0:02:55.7]} 4... Ngf6 {[%clk 0:02:58.3]} 5. e3 {[%clk 0:02:53]}
5... g6 {[%clk 0:02:58.2]} 6. Bc4 {[%clk 0:02:49.9]} 6... Bg7 {[%clk 0:02:58.1]}
7. Bxf7+ {[%clk 0:02:23.4]} 7... Kxf7 {[%clk 0:02:59]} 8. Ng5+ {[%clk
0:02:24.2]} 8... Kg8 {[%clk 0:02:58.8]} 9. Ne6 {[%clk 0:02:24.5]} 9... Qb6
{[%clk 0:02:56.9]} 10. g4 {[%clk 0:02:21]} 10... Ne8 {[%clk 0:02:47.3]} 11. Nxg7
{[%clk 0:02:12.5]} 11... Nxg7 {[%clk 0:02:48.2]} 12. Nc3 {[%clk 0:02:06]} 12...
Nf6 {[%clk 0:02:47.8]} 13. Rg1 {[%clk 0:01:55.3]} 13... e5 {[%clk 0:02:33.2]}
14. fxe5 {[%clk 0:01:45.8]} 14... dxe5 {[%clk 0:02:34.1]} 15. Qf3 {[%clk
0:01:45.8]} 15... Nxg4 {[%clk 0:02:32.4]} 16. O-O-O {[%clk 0:01:21.7]} 16...
Nxh2 {[%clk 0:02:24.3]} 17. Qe2 {[%clk 0:01:06.4]} 17... Bg4 {[%clk 0:02:23.5]}
18. Rxg4 {[%clk 0:00:57.7]} 18... Nxg4 {[%clk 0:02:24.4]} 19. Qc4+ {[%clk
0:00:52.6]} 19... Kf8 {[%clk 0:02:17.8]} 20. Rf1+ {[%clk 0:00:52.6]} 20... Nf5
{[%clk 0:02:17.3]} 21. Qxg4 {[%clk 0:00:46]} 21... Ke8 {[%clk 0:02:15]} 22. Ne4
{[%clk 0:00:41.9]} 22... Qc7 {[%clk 0:02:05.3]} 23. Rxf5 {[%clk 0:00:27.2]}
23... gxf5 {[%clk 0:02:03.5]} 24. Qh5+ {[%clk 0:00:27.8]} 24... Kd8 {[%clk
0:02:01.6]} 25. Qxf5 {[%clk 0:00:24.2]} 25... Re8 {[%clk 0:01:59.1]} 26. Ba3
{[%clk 0:00:21.5]} 26... b6 {[%clk 0:01:38.6]} 27. Nd6 {[%clk 0:00:16.5]} 27...
Qd7 {[%clk 0:01:33.7]} 28. Qf6+ {[%clk 0:00:08.1]} 28... Kc7 {[%clk 0:01:33.5]}
29. Nc4 {[%clk 0:00:06.6]} 29... Re6 {[%clk 0:01:28]} 30. Qf3 {[%clk 0:00:06.4]}
30... Rae8 {[%clk 0:01:27.4]} 31. Qe4 {[%clk 0:00:06.1]} 31... b5 {[%clk
0:01:12.6]} 32. Na5 {[%clk 0:00:05.9]} 32... h5 {[%clk 0:01:05.5]} 33. Bc5
{[%clk 0:00:05.7]} 33... Kb8 {[%clk 0:01:05.2]} 34. a4 {[%clk 0:00:05]} 34... a6
{[%clk 0:01:00.8]} 35. axb5 {[%clk 0:00:04.7]} 35... cxb5 {[%clk 0:01:01.7]} 36.
d4 {[%clk 0:00:02.2]} 36... exd4 {[%clk 0:00:59.3]} 37. Qf4+ {[%clk 0:00:02.6]}
37... Qc7 {[%clk 0:00:57.9]} 38. Qxd4 {[%clk 0:00:01.6]} 38... Qxa5 {[%clk
0:00:55.4]} 39. Ba7+ {[%clk 0:00:01.7]} 39... Kb7 {[%clk 0:00:53.3]} 0-1

[Event "Late-Titled-Tuesday-Blitz-May-28-2024"]
[Site "Chess.com"]
[Date "2024.05.28"]
[Round "2"]
[White "Byniolus"]
[Black "Eloist"]
[Result "1-0"]
[WhiteElo "2731"]
[BlackElo "2448"]
[TimeControl "180+1"]
[EndTime "14:17:58 PDT"]
[Termination "Byniolus won on time"]

1. d4 {[%clk 0:03:00.9]} 1... e6 {[%clk 0:02:56.6]} 2. Nf3 {[%clk 0:03:01.2]}
2... Nf6 {[%clk 0:02:55.7]} 3. Bf4 {[%clk 0:03:01.5]} 3... d5 {[%clk 0:02:55.2]}
4. e3 {[%clk 0:03:01.9]} 4... c5 {[%clk 0:02:54.8]} 5. c3 {[%clk 0:03:02]} 5...
Nc6 {[%clk 0:02:54.8]} 6. Nbd2 {[%clk 0:03:02.3]} 6... Bd6 {[%clk 0:02:54.7]} 7.
Bg3 {[%clk 0:03:02.8]} 7... O-O {[%clk 0:02:53.5]} 8. Bd3 {[%clk 0:03:02.9]}
8... b6 {[%clk 0:02:53.1]} 9. Ne5 {[%clk 0:03:03]} 9... Qc7 {[%clk 0:02:37.3]}
10. f4 {[%clk 0:03:02.8]} 10... Ne7 {[%clk 0:02:19.4]} 11. Qf3 {[%clk
0:03:02.9]} 11... Nf5 {[%clk 0:02:14.3]} 12. Bf2 {[%clk 0:03:03.2]} 12... Be7
{[%clk 0:02:04.5]} 13. Rd1 {[%clk 0:02:49.3]} 13... Bb7 {[%clk 0:02:01.6]} 14.
O-O {[%clk 0:02:47.4]} 14... a5 {[%clk 0:01:59.6]} 15. g4 {[%clk 0:02:38.4]}
15... Nd6 {[%clk 0:01:59]} 16. Bh4 {[%clk 0:02:38.6]} 16... Nfe4 {[%clk
0:01:47.1]} 17. Bxe7 {[%clk 0:02:38.1]} 17... Qxe7 {[%clk 0:01:38.5]} 18. Qe2
{[%clk 0:02:19.9]} 18... f6 {[%clk 0:01:36.3]} 19. Nef3 {[%clk 0:02:19.4]} 19...
a4 {[%clk 0:01:32.1]} 20. a3 {[%clk 0:02:19.1]} 20... Bc6 {[%clk 0:01:27.1]} 21.
Kh1 {[%clk 0:02:11.7]} 21... Qd7 {[%clk 0:01:19.9]} 22. Rg1 {[%clk 0:02:02.1]}
22... Bb5 {[%clk 0:01:09]} 23. Rg2 {[%clk 0:02:02.5]} 23... Bxd3 {[%clk
0:01:07.3]} 24. Qxd3 {[%clk 0:02:03.4]} 24... b5 {[%clk 0:00:57.2]} 25. g5
{[%clk 0:01:37.7]} 25... Nxd2 {[%clk 0:00:31.2]} 26. Qxd2 {[%clk 0:01:32.6]}
26... Ne4 {[%clk 0:00:23.6]} 27. Qe1 {[%clk 0:01:29.8]} 27... Kh8 {[%clk
0:00:13.6]} 28. Qh4 {[%clk 0:01:25]} 28... fxg5 {[%clk 0:00:12.9]} 29. Nxg5
{[%clk 0:01:24.8]} 29... Nxg5 {[%clk 0:00:12.7]} 30. Rxg5 {[%clk 0:01:25.7]}
30... cxd4 {[%clk 0:00:10.5]} 31. cxd4 {[%clk 0:01:26.6]} 31... Qd8 {[%clk
0:00:07.2]} 32. Rdg1 {[%clk 0:01:25.4]} 32... Ra7 {[%clk 0:00:05.9]} 33. Qh3
{[%clk 0:01:22.8]} 33... Qf6 {[%clk 0:00:04.9]} 34. Rh5 {[%clk 0:01:19.6]} 34...
g6 {[%clk 0:00:03.6]} 35. Re5 {[%clk 0:01:17.4]} 35... Re7 {[%clk 0:00:02.8]}
36. Rc1 {[%clk 0:01:17.3]} 36... Kg7 {[%clk 0:00:01.6]} 37. Qf1 {[%clk
0:01:13.7]} 37... Rff7 {[%clk 0:00:02]} 38. Qxb5 {[%clk 0:01:12.1]} 38... Qh4
{[%clk 0:00:01.9]} 39. Qe2 {[%clk 0:01:11.8]} 39... Rf5 {[%clk 0:00:01.1]} 40.
Qe1 {[%clk 0:01:08.6]} 40... Qxe1+ {[%clk 0:00:01]} 41. Rxe1 {[%clk 0:01:09.5]}
41... Rxe5 {[%clk 0:00:01.4]} 42. dxe5 {[%clk 0:01:10.1]} 42... Rc7 {[%clk
0:00:01.1]} 43. Re2 {[%clk 0:01:10.5]} 43... Rc1+ {[%clk 0:00:01]} 44. Kg2
{[%clk 0:01:11.1]} 44... g5 {[%clk 0:00:01]} 45. Kf3 {[%clk 0:01:03.5]} 45...
Kg6 {[%clk 0:00:01.6]} 46. e4 {[%clk 0:01:03.6]} 46... d4 {[%clk 0:00:01.1]} 47.
fxg5 {[%clk 0:01:01.7]} 47... Kxg5 {[%clk 0:00:01]} 48. Rg2+ {[%clk 0:01:02.6]}
48... Kh6 {[%clk 0:00:01]} 49. Rd2 {[%clk 0:01:03.5]} 1-0

[Event "Late-Titled-Tuesday-Blitz-May-28-2024"]
[Site "Chess.com"]
[Date "2024.05.28"]
[Round "2"]
[White "RaugintaBulba"]
[Black "Alex_Sahakyan2006"]
[Result "1-0"]
[WhiteElo "2437"]
[BlackElo "2785"]
[TimeControl "180+1"]
[EndTime "14:17:58 PDT"]
[Termination "RaugintaBulba won by resignation"]

1. d4 {[%clk 0:03:00]} 1... Nf6 {[%clk 0:02:59.4]} 2. c4 {[%clk 0:02:59.6]} 2...
g6 {[%clk 0:02:59.8]} 3. Nc3 {[%clk 0:02:56.9]} 3... Bg7 {[%clk 0:02:59.5]} 4.
e4 {[%clk 0:02:57.5]} 4... d6 {[%clk 0:02:58.8]} 5. h3 {[%clk 0:02:57]} 5... O-O
{[%clk 0:02:57.6]} 6. Be3 {[%clk 0:02:57.3]} 6... c5 {[%clk 0:02:57.1]} 7. d5
{[%clk 0:02:56.9]} 7... b5 {[%clk 0:02:56.5]} 8. cxb5 {[%clk 0:02:50.5]} 8... a6
{[%clk 0:02:56.8]} 9. Nf3 {[%clk 0:02:24.3]} 9... axb5 {[%clk 0:02:52]} 10. Bxb5
{[%clk 0:02:24.1]} 10... Nxe4 {[%clk 0:02:52.5]} 11. O-O {[%clk 0:01:45.8]}
11... Bxc3 {[%clk 0:02:50]} 12. Qc2 {[%clk 0:01:36.6]} 12... Bf5 {[%clk
0:02:45.5]} 13. bxc3 {[%clk 0:01:33.5]} 13... Ng3 {[%clk 0:02:44.8]} 14. Qb2
{[%clk 0:01:27.9]} 14... Nxf1 {[%clk 0:02:44.2]} 15. Bh6 {[%clk 0:01:27.9]}
15... Nd7 {[%clk 0:02:40.2]} 16. c4 {[%clk 0:01:23.6]} 16... Nf6 {[%clk
0:02:39.1]} 17. Kxf1 {[%clk 0:01:16.8]} 17... Qa5 {[%clk 0:02:24.9]} 18. Bxf8
{[%clk 0:01:15.9]} 18... Rxf8 {[%clk 0:02:15.4]} 19. a4 {[%clk 0:01:16.5]} 19...
Ne8 {[%clk 0:02:01.7]} 20. Re1 {[%clk 0:01:09.7]} 20... e5 {[%clk 0:01:50.7]}
21. dxe6 {[%clk 0:01:07.8]} 21... fxe6 {[%clk 0:01:49]} 22. Rd1 {[%clk
0:00:59.9]} 22... Qa8 {[%clk 0:01:23.5]} 23. Bxe8 {[%clk 0:00:53.4]} 23... Rxe8
{[%clk 0:01:04.3]} 24. Rxd6 {[%clk 0:00:51.8]} 24... Rb8 {[%clk 0:00:48.7]} 25.
Qd2 {[%clk 0:00:36.7]} 25... Rf8 {[%clk 0:00:30.6]} 26. a5 {[%clk 0:00:34.3]}
26... Bxh3 {[%clk 0:00:28.7]} 27. Kg1 {[%clk 0:00:33]} 27... Bxg2 {[%clk
0:00:27.4]} 28. Ng5 {[%clk 0:00:29.9]} 28... Bb7 {[%clk 0:00:16.7]} 29. Nxe6
{[%clk 0:00:26.1]} 29... Qc8 {[%clk 0:00:10.6]} 30. Qh6 {[%clk 0:00:22.2]} 30...
Rf7 {[%clk 0:00:03]} 31. Rd8+ {[%clk 0:00:22.6]} 31... Qxd8 {[%clk 0:00:03.7]}
32. Nxd8 {[%clk 0:00:23.5]} 32... Bf3 {[%clk 0:00:04.1]} 33. Nxf7 {[%clk
0:00:22.5]} 33... Kxf7 {[%clk 0:00:05]} 1-0

[Event "Late-Titled-Tuesday-Blitz-May-28-2024"]
[Site "Chess.com"]
[Date "2024.05.28"]
[Round "2"]
[White "lachesisQ"]
[Black "chess94cu"]
[Result "0-1"]
[WhiteElo "3055"]
[BlackElo "2640"]
[TimeControl "180+1"]
[EndTime "14:18:01 PDT"]
[Termination "chess94cu won by checkmate"]

1. e4 {[%clk 0:03:00.9]} 1... c6 {[%clk 0:02:59.2]} 2. d4 {[%clk 0:03:00.1]}
2... d5 {[%clk 0:03:00.1]} 3. e5 {[%clk 0:03:01]} 3... Bf5 {[%clk 0:03:00]} 4.
h4 {[%clk 0:03:01.4]} 4... h5 {[%clk 0:03:00.1]} 5. Bd3 {[%clk 0:03:00.9]} 5...
Bxd3 {[%clk 0:03:00.2]} 6. Qxd3 {[%clk 0:03:01.8]} 6... e6 {[%clk 0:03:00.7]} 7.
Bg5 {[%clk 0:03:00.4]} 7... Qa5+ {[%clk 0:03:01.2]} 8. Nd2 {[%clk 0:03:00.4]}
8... Qa6 {[%clk 0:03:02.1]} 9. Qf3 {[%clk 0:02:55.8]} 9... c5 {[%clk 0:02:56.2]}
10. c3 {[%clk 0:02:52.2]} 10... Nc6 {[%clk 0:02:56.1]} 11. Ne2 {[%clk
0:02:51.8]} 11... cxd4 {[%clk 0:02:56.3]} 12. cxd4 {[%clk 0:02:51.7]} 12... Bb4
{[%clk 0:02:55.8]} 13. O-O {[%clk 0:02:50.8]} 13... Bxd2 {[%clk 0:02:54]} 14.
Bxd2 {[%clk 0:02:51.7]} 14... Nge7 {[%clk 0:02:54.8]} 15. Rfe1 {[%clk
0:02:35.3]} 15... Nf5 {[%clk 0:02:53.7]} 16. Qf4 {[%clk 0:02:35.2]} 16... Rc8
{[%clk 0:02:43.6]} 17. Bc3 {[%clk 0:02:35]} 17... b5 {[%clk 0:02:27.1]} 18. a3
{[%clk 0:02:34.7]} 18... O-O {[%clk 0:02:22.3]} 19. Qg5 {[%clk 0:02:31.7]} 19...
g6 {[%clk 0:02:22.4]} 20. Rad1 {[%clk 0:02:27.8]} 20... Qb7 {[%clk 0:02:18.7]}
21. Nf4 {[%clk 0:02:26.5]} 21... Qe7 {[%clk 0:02:13.4]} 22. Qxe7 {[%clk
0:02:17.7]} 22... Nfxe7 {[%clk 0:02:14.3]} 23. g3 {[%clk 0:02:04.7]} 23... a5
{[%clk 0:02:12.4]} 24. Nd3 {[%clk 0:02:04.3]} 24... Nf5 {[%clk 0:02:11.4]} 25.
Kg2 {[%clk 0:01:52.5]} 25... Nfxd4 {[%clk 0:01:57.5]} 26. Nc5 {[%clk 0:01:52.2]}
26... Nf5 {[%clk 0:01:53.4]} 27. b4 {[%clk 0:01:40]} 27... a4 {[%clk 0:01:52.7]}
28. Bd2 {[%clk 0:01:23.9]} 28... Rfe8 {[%clk 0:01:13.4]} 29. Bg5 {[%clk
0:01:22.6]} 29... Rc7 {[%clk 0:01:09.6]} 30. Rd3 {[%clk 0:01:20.2]} 30... Rec8
{[%clk 0:01:04.6]} 31. Bf6 {[%clk 0:01:11.3]} 31... Na5 {[%clk 0:01:03.4]} 32.
Kf3 {[%clk 0:00:45.4]} 32... Nb3 {[%clk 0:00:51.5]} 33. Nxb3 {[%clk 0:00:33.5]}
33... axb3 {[%clk 0:00:52.4]} 34. Rxb3 {[%clk 0:00:33.2]} 34... Nd4+ {[%clk
0:00:52.1]} 35. Kf4 {[%clk 0:00:30.1]} 35... Nxb3 {[%clk 0:00:52.3]} 36. Kg5
{[%clk 0:00:29.3]} 36... Kh7 {[%clk 0:00:52.4]} 37. g4 {[%clk 0:00:29.6]} 37...
Nd4 {[%clk 0:00:45.6]} 38. Rd1 {[%clk 0:00:24.3]} 38... Rc4 {[%clk 0:00:43.2]}
39. Rd3 {[%clk 0:00:22.1]} 39... hxg4 {[%clk 0:00:42.6]} 40. h5 {[%clk
0:00:22.2]} 40... gxh5 {[%clk 0:00:41.8]} 41. Kxh5 {[%clk 0:00:21.2]} 41... Nf3
{[%clk 0:00:37.1]} 42. Be7 {[%clk 0:00:15.9]} 42... Rg8 {[%clk 0:00:36.4]} 43.
Rd1 {[%clk 0:00:14.8]} 43... Rg6 {[%clk 0:00:35.8]} 44. Bf8 {[%clk 0:00:15.1]}
44... Rg5# {[%clk 0:00:35.3]} 0-1

[Event "Late-Titled-Tuesday-Blitz-May-28-2024"]
[Site "Chess.com"]
[Date "2024.05.28"]
[Round "2"]
[White "Arteler"]
[Black "Lion_DL"]
[Result "0-1"]
[WhiteElo "2260"]
[BlackElo "2517"]
[TimeControl "180+1"]
[EndTime "14:18:04 PDT"]
[Termination "Lion_DL won by checkmate"]

1. d4 {[%clk 0:03:00.9]} 1... Nf6 {[%clk 0:02:59.5]} 2. c4 {[%clk 0:03:00.7]}
2... e6 {[%clk 0:02:59.6]} 3. Nc3 {[%clk 0:03:01.1]} 3... Bb4 {[%clk 0:02:58.9]}
4. Qc2 {[%clk 0:03:01.4]} 4... d5 {[%clk 0:02:58.3]} 5. e3 {[%clk 0:02:59.8]}
5... O-O {[%clk 0:02:56.1]} 6. Bd2 {[%clk 0:02:59.4]} 6... c5 {[%clk 0:02:53.3]}
7. a3 {[%clk 0:02:54.4]} 7... cxd4 {[%clk 0:02:50]} 8. axb4 {[%clk 0:02:50.1]}
8... dxc3 {[%clk 0:02:50.1]} 9. Bxc3 {[%clk 0:02:49.3]} 9... Ne4 {[%clk
0:02:47.3]} 10. Bd3 {[%clk 0:02:43.6]} 10... f5 {[%clk 0:02:37.6]} 11. Nf3
{[%clk 0:02:32.3]} 11... Nd7 {[%clk 0:02:21.4]} 12. O-O {[%clk 0:02:31.8]} 12...
Ndf6 {[%clk 0:02:21.1]} 13. Bd4 {[%clk 0:02:03.8]} 13... dxc4 {[%clk 0:02:03.3]}
14. Bxc4 {[%clk 0:01:57.2]} 14... b6 {[%clk 0:02:00.8]} 15. Qb3 {[%clk
0:01:50.8]} 15... Re8 {[%clk 0:01:49.4]} 16. Rfd1 {[%clk 0:01:48.7]} 16... Qc7
{[%clk 0:01:41.2]} 17. Be5 {[%clk 0:01:41.4]} 17... Qe7 {[%clk 0:01:35.2]} 18.
Nd4 {[%clk 0:01:14.2]} 18... Bd7 {[%clk 0:01:00.8]} 19. Nxf5 {[%clk 0:01:06.5]}
19... Qf7 {[%clk 0:00:54.7]} 20. Nd4 {[%clk 0:00:38.4]} 20... Ng4 {[%clk
0:00:51]} 21. f3 {[%clk 0:00:29.9]} 21... Nxe5 {[%clk 0:00:39.6]} 22. fxe4
{[%clk 0:00:28.8]} 22... Nxc4 {[%clk 0:00:32.4]} 23. Qxc4 {[%clk 0:00:27.1]}
23... Qg6 {[%clk 0:00:23.4]} 24. Nf3 {[%clk 0:00:23.1]} 24... Red8 {[%clk
0:00:20.4]} 25. Ne5 {[%clk 0:00:21]} 25... Qe8 {[%clk 0:00:21.1]} 26. Nxd7
{[%clk 0:00:20.4]} 26... Rxd7 {[%clk 0:00:21.4]} 27. Qxe6+ {[%clk 0:00:19.7]}
27... Qxe6 {[%clk 0:00:21]} 28. Rxd7 {[%clk 0:00:14.6]} 28... Qxd7 {[%clk
0:00:21.9]} 29. e5 {[%clk 0:00:13.7]} 29... Qd2 {[%clk 0:00:21.2]} 30. e6 {[%clk
0:00:10.6]} 30... Qxe3+ {[%clk 0:00:21.6]} 31. Kh1 {[%clk 0:00:10.2]} 31... Qxe6
{[%clk 0:00:22.3]} 32. Rf1 {[%clk 0:00:10.4]} 32... Rf8 {[%clk 0:00:22.4]} 33.
Ra1 {[%clk 0:00:07.8]} 33... Qe2 {[%clk 0:00:21.4]} 34. h3 {[%clk 0:00:06.8]}
34... Rf2 {[%clk 0:00:20.6]} 35. Rf1 {[%clk 0:00:07.7]} 35... Qxf1+ {[%clk
0:00:20.3]} 36. Kh2 {[%clk 0:00:08.6]} 36... Qxg2# {[%clk 0:00:20.8]} 0-1

[Event "Late-Titled-Tuesday-Blitz-May-28-2024"]
[Site "Chess.com"]
[Date "2024.05.28"]
[Round "2"]
[White "olawsson"]
[Black "almaguerjm"]
[Result "0-1"]
[WhiteElo "2125"]
[BlackElo "2460"]
[TimeControl "180+1"]
[EndTime "14:18:05 PDT"]
[Termination "almaguerjm won on time"]

1. d4 {[%clk 0:03:00.9]} 1... d5 {[%clk 0:02:42]} 2. c4 {[%clk 0:02:59.2]} 2...
e6 {[%clk 0:02:40.1]} 3. Nc3 {[%clk 0:02:58.6]} 3... Nf6 {[%clk 0:02:40.1]} 4.
Bg5 {[%clk 0:02:59.1]} 4... c6 {[%clk 0:02:25]} 5. e3 {[%clk 0:02:52.3]} 5...
Nbd7 {[%clk 0:02:22.5]} 6. Nf3 {[%clk 0:02:51.7]} 6... h6 {[%clk 0:02:22.7]} 7.
Bh4 {[%clk 0:02:51.1]} 7... Be7 {[%clk 0:02:20.1]} 8. Rc1 {[%clk 0:02:50.3]}
8... O-O {[%clk 0:02:20.3]} 9. Bd3 {[%clk 0:02:50.1]} 9... Ne8 {[%clk
0:02:17.3]} 10. Bg3 {[%clk 0:02:45.7]} 10... f5 {[%clk 0:02:17.3]} 11. Qc2
{[%clk 0:02:23.6]} 11... Nb6 {[%clk 0:01:57.3]} 12. Ne5 {[%clk 0:02:14.1]} 12...
Bd6 {[%clk 0:01:47.1]} 13. c5 {[%clk 0:01:32.8]} 13... Bxe5 {[%clk 0:01:45.9]}
14. Bxe5 {[%clk 0:01:33.7]} 14... Nd7 {[%clk 0:01:46]} 15. Bg3 {[%clk
0:01:31.1]} 15... Qe7 {[%clk 0:01:42.4]} 16. b4 {[%clk 0:01:27.3]} 16... g5
{[%clk 0:01:31.7]} 17. f4 {[%clk 0:01:20.4]} 17... Nef6 {[%clk 0:01:24.6]} 18.
fxg5 {[%clk 0:01:16.7]} 18... hxg5 {[%clk 0:01:24]} 19. Bd6 {[%clk 0:01:16.7]}
19... Qh7 {[%clk 0:01:18.3]} 20. Bxf8 {[%clk 0:01:07.4]} 20... Nxf8 {[%clk
0:01:16.6]} 21. h4 {[%clk 0:00:59.3]} 21... Ng6 {[%clk 0:01:04]} 22. h5 {[%clk
0:00:37.8]} 22... Nh4 {[%clk 0:01:03.9]} 23. Qf2 {[%clk 0:00:38.1]} 23... Qxh5
{[%clk 0:00:58.5]} 24. Be2 {[%clk 0:00:38.1]} 24... Ng4 {[%clk 0:00:41.8]} 25.
Bxg4 {[%clk 0:00:17.6]} 25... Qxg4 {[%clk 0:00:42.7]} 26. Rh2 {[%clk 0:00:07.5]}
26... Bd7 {[%clk 0:00:38.1]} 27. Kd2 {[%clk 0:00:07.6]} 27... a5 {[%clk
0:00:38]} 28. b5 {[%clk 0:00:06.8]} 28... cxb5 {[%clk 0:00:37.9]} 29. Rf1 {[%clk
0:00:05.2]} 29... b4 {[%clk 0:00:35.4]} 30. Ne2 {[%clk 0:00:05.2]} 30... Bb5
{[%clk 0:00:35.1]} 31. g3 {[%clk 0:00:05.7]} 31... Ng6 {[%clk 0:00:34.5]} 32.
Rfh1 {[%clk 0:00:05]} 32... a4 {[%clk 0:00:27.8]} 33. Rh6 {[%clk 0:00:05]} 33...
Kf7 {[%clk 0:00:27.3]} 34. Qh2 {[%clk 0:00:05]} 34... Rg8 {[%clk 0:00:23.9]} 35.
Rh7+ {[%clk 0:00:03.5]} 35... Kf6 {[%clk 0:00:24]} 36. Rxb7 {[%clk 0:00:02.6]}
36... Rh8 {[%clk 0:00:22.9]} 0-1